bitfinex/quotes_ETHUSD_20241022
["timestamp","ask_amount","ask_price","bid_price","bid_amount"]
[1729614858067,3.81695,2619.9,2619.5,0.7974]
[1729614858292,3.81716,2619.8,2619.5,0.7974]
[1729614861862,1.67946478,2620.0,2619.5,0.7974]
[1729614862060,3.81687,2620.0,2619.5,6.29435478]
[1729614862303,3.81697,2619.9,2619.5,2.47686478]
[1729614862865,3.81697,2619.9,2619.5,0.7974]
[1729614863409,3.81697,2619.9,2619.5,2.47686478]
[1729614863700,3.81697,2619.9,2619.5,0.7974]
[1729614864064,7.634,2619.9,2619.5,0.7974]
[1729614864266,3.81697,2619.9,2619.5,0.7974]
[1729614865473,3.81719,2619.8,2619.5,0.7974]
[1729614867531,5.49634478,2620.0,2619.5,2.47686478]
[1729614867532,3.81688,2620.0,2619.5,2.47686478]
[1729614867813,3.81696,2619.9,2619.5,1.51436656]
[1729614868016,3.81696,2619.9,2619.5,0.7974]
[1729614869124,3.81696,2619.9,2619.3,4.69291084]
[1729614869125,3.81647,2620.3,2619.9,0.8017]
[1729614869290,3.81634,2620.4,2619.9,0.8017]
[1729614869631,3.81641,2620.3,2619.9,0.8017]
[1729614870331,7.63291,2620.3,2619.9,0.8017]
[1729614870537,5.49625478,2620.0,2619.7,1.60050424]
[1729614870692,3.817,2619.9,2619.7,0.8017]
[1729614871033,3.817,2619.9,2619.3,7.09474326]
[1729614871034,3.81708,2619.8,2619.5,1.59320424]
[1729614871217,3.81708,2619.8,2619.5,0.7944]
[1729614871540,3.81708,2619.8,2619.5,1.59320424]
[1729614871736,3.81694,2619.9,2619.5,1.59320424]
[1729614871914,3.81713,2619.8,2619.5,1.59320424]
[1729614872226,3.81723,2619.7,2619.5,0.7944]
[1729614872435,2.81723,2619.7,2619.5,0.7944]
[1729614872647,3.81714,2619.8,2619.5,0.7944]
[1729614872995,3.81724,2619.7,2619.5,0.7944]
[1729614873210,5.49670478,2619.7,2619.3,1.59320424]
[1729614873500,3.81724,2619.7,2619.3,1.59320424]
[1729614873942,3.81737,2619.6,2619.3,0.7944]
[1729614874724,3.81725,2619.7,2619.3,0.7944]
[1729614874924,3.81725,2619.7,2619.3,1.59320424]
[1729614875614,3.81725,2619.7,2619.3,0.7944]
[1729614877744,3.81715,2619.8,2619.4,1.67946478]
[1729614877940,3.81715,2619.8,2619.3,4.48335656]
[1729614878241,3.81723,2619.7,2619.3,4.48335656]
[1729614878931,3.81723,2619.7,2619.3,2.00508754]
[1729614879311,3.81723,2619.7,2619.3,3.68455232]
[1729614879514,3.81711,2619.8,2619.4,0.83012766]
[1729614879745,3.81711,2619.8,2619.3,4.48335656]
[1729614880063,3.81711,2619.8,2619.3,3.68455232]
[1729614880287,3.81724,2619.7,2619.3,3.68455232]
[1729614880458,3.81724,2619.7,2619.3,4.48335656]
[1729614880859,3.81724,2619.7,2619.3,2.80389178]
[1729614881770,3.81724,2619.7,2619.3,2.00508754]
[1729614882459,3.81724,2619.7,2619.3,2.80389178]
[1729614882666,3.81732,2619.7,2619.3,2.80389178]
[1729614882862,3.81732,2619.7,2619.3,2.00508754]
[1729614887272,3.81732,2619.7,2619.3,3.68455232]
[1729614887470,3.81724,2619.7,2619.4,0.83012966]
[1729614890336,1.67946478,2619.9,2619.3,0.7944]
[1729614890517,3.81621,2620.4,2619.7,0.8156]
[1729614890689,3.81674,2620.1,2619.7,0.7765]
[1729614890878,3.81656,2620.2,2619.7,4.53565]
[1729614891093,3.81656,2620.2,2619.7,4.53561]
[1729614891278,3.81656,2620.2,2619.7,4.5184979]
[1729614891612,3.81642,2620.3,2619.8,3.81707]
[1729614891920,5.49598478,2620.2,2619.8,3.81707]
[1729614892226,5.49588478,2620.3,2619.8,3.81707]
[1729614892512,5.49588478,2620.3,2619.7,2.38085268]
[1729614892513,3.81656,2620.2,2619.7,4.5185579]
[1729614893222,3.81656,2620.2,2619.8,3.81705]
[1729614893971,3.81656,2620.2,2619.9,0.7591]
[1729614894583,5.49586478,2620.3,2619.9,0.7591]
[1729614895288,1.67946478,2620.3,2619.9,0.7591]
[1729614895489,5.49588478,2620.3,2619.9,5.65342227]
[1729614895783,3.81613,2620.5,2620.2,0.8251]
[1729614896012,5.49525478,2620.7,2620.2,0.8251]
[1729614896013,3.81579,2620.7,2620.3,3.81635]
[1729614896218,3.81579,2620.7,2620.4,0.8251]
[1729614896522,5.49506478,2620.9,2620.5,3.81603]
[1729614896687,1.67946478,2620.9,2620.4,4.64125]
[1729614896887,5.49510478,2620.8,2620.4,4.64125]
[1729614897705,3.81564,2620.8,2620.4,4.64125]
[1729614898020,5.49510478,2620.8,2620.4,4.64125]
[1729614898228,5.49510478,2620.8,2620.4,0.8251]
[1729614898409,3.81577,2620.7,2620.4,0.8251]
[1729614900484,1.67946478,2621.0,2620.4,6.50935826]
[1729614900685,3.0,2621.1,2620.6,6.31427478]
[1729614900686,3.81523,2621.1,2620.6,6.31427478]
[1729614900919,1.67946478,2620.9,2620.7,0.8189]
[1729614901132,3.81549,2620.9,2620.7,0.8189]
[1729614901296,3.81562,2620.8,2620.7,0.8189]
[1729614901846,1.67946478,2620.8,2620.3,0.7789]
[1729614901996,5.49567478,2620.4,2620.3,0.7789]
[1729614902191,3.81621,2620.4,2620.3,0.7789]
[1729614902767,3.81636,2620.3,2620.0,0.8222]
[1729614902937,5.49610478,2620.1,2620.0,0.8222]
[1729614903249,5.49605478,2620.2,2620.0,0.8222]
[1729614903819,5.49610478,2620.1,2619.6,0.8239]
[1729614904147,3.81682,2620.0,2619.6,0.8239]
[1729614904636,5.49628478,2620.0,2619.6,0.8239]
[1729614904837,1.67946478,2620.0,2619.6,0.8239]
[1729614905140,3.8174,2619.6,2619.4,0.7519]
[1729614905444,5.49686478,2619.6,2619.4,0.7519]
[1729614905656,3.81752,2619.5,2619.4,0.7519]
[1729614905944,1.67946478,2619.6,2619.4,0.7519]
[1729614906096,5.49675478,2619.7,2619.4,0.7519]
[1729614906299,3.81729,2619.7,2619.4,0.7519]
[1729614908648,3.81741,2619.6,2619.4,0.7519]
[1729614910614,3.81741,2619.6,2619.1,1.3339]
[1729614910808,3.81752,2619.5,2619.1,1.3339]
[1729614911006,3.81767,2619.4,2619.1,0.7839]
[1729614911849,3.81788,2619.3,2619.1,0.7839]
[1729614912024,3.81811,2619.1,2618.8,1.66633126]
[1729614912224,0.0971,2619.2,2618.8,0.7839]
[1729614912407,3.8183,2619.0,2618.8,0.7839]
[1729614913138,3.8181,2619.1,2618.6,0.7889]
[1729614913139,3.81849,2618.9,2618.6,0.7889]
[1729614913530,3.81854,2618.8,2618.6,0.7889]
[1729614914351,3.81849,2618.9,2618.6,0.7889]
[1729614914553,3.81856,2618.8,2618.6,0.7889]
[1729614915532,3.81849,2618.9,2618.6,0.7889]
[1729614918720,3.81848,2618.9,2618.6,0.7889]
[1729614920867,3.81828,2619.0,2618.6,0.7889]
[1729614922264,3.8184,2618.9,2618.6,0.7889]
[1729614923545,3.81855,2618.8,2618.6,0.7889]
[1729614923721,3.81841,2618.9,2618.6,0.7889]
[1729614925354,7.63692,2618.9,2618.6,0.7889]
[1729614925550,3.81841,2618.9,2618.6,0.7889]
[1729614929546,1.68104821,2619.0,2618.6,0.7889]
[1729614929763,3.81831,2619.0,2618.6,0.7889]
[1729614930834,3.81841,2618.9,2618.6,0.7889]
[1729614931779,5.49909821,2619.2,2618.7,3.81858]
[1729614931931,0.10017075,2618.8,2618.7,3.81858]
[1729614932135,5.49909821,2619.2,2618.7,3.81858]
[1729614932364,0.10124432,2619.1,2618.8,0.7558]
[1729614932879,3.91935432,2619.1,2618.8,0.7558]
[1729614933778,5.60040253,2619.1,2618.8,0.7558]
[1729614934726,3.81839,2618.9,2618.8,0.7558]
[1729614934875,5.49951821,2618.9,2618.5,0.8232]
[1729614935226,3.91615923,2618.9,2618.5,4.64216]
[1729614935428,3.91615923,2618.9,2618.5,5.6640212]
[1729614935618,0.09768923,2618.9,2618.6,0.55]
[1729614935918,0.09768923,2618.9,2618.7,0.8232]
[1729614937692,3.81825,2619.0,2618.7,0.8232]
[1729614938433,0.09754304,2618.9,2618.7,0.8232]
[1729614940899,3.91596304,2618.9,2618.7,0.8232]
[1729614943134,3.81854,2618.8,2618.7,0.8232]
[1729614943337,3.81854,2618.8,2618.5,0.55]
[1729614943526,3.91603193,2618.8,2618.5,0.55]
[1729614945453,0.09749193,2618.8,2618.6,2.43674821]
[1729614945636,3.81833,2619.0,2618.6,6.25551821]
[1729614945808,0.09743868,2618.7,2618.6,6.80551821]
[1729614946146,3.81815,2619.1,2618.6,6.80551821]
[1729614946147,3.81815,2619.1,2618.7,0.55]
[1729614946925,5.49919821,2619.1,2618.7,0.55]
[1729614947444,3.81825,2619.0,2618.7,0.55]
[1729614949346,3.81825,2619.0,2618.7,1.6805863]
[1729614949548,3.81825,2619.0,2618.7,0.55]
[1729614950822,3.81814,2619.1,2618.7,0.55]
[1729614951027,3.81827,2619.0,2618.7,0.55]
[1729614952780,0.09740179,2618.9,2618.7,0.55]
[1729614953291,0.09740179,2618.9,2618.7,1.34880424]
[1729614953646,0.09740179,2618.9,2618.7,0.55]
[1729614954252,0.09740179,2618.9,2618.7,1.34880424]
[1729614956254,0.09740179,2618.9,2618.8,0.79880424]
[1729614959058,0.09740179,2618.9,2618.7,1.74820636]
[1729614959267,0.09740179,2618.9,2618.8,0.80195845]
[1729614961015,3.91579179,2618.9,2618.8,0.80195845]
[1729614961319,0.09740179,2618.9,2618.8,0.80195845]
[1729614965505,0.09740179,2618.9,2618.7,1.74820636]
[1729614965822,0.09740179,2618.9,2618.8,0.80200445]
[1729614966313,0.09740179,2618.9,2618.7,3.19077636]
[1729614966533,0.09740179,2618.9,2618.8,0.8020073]
[1729614967111,3.91579179,2618.9,2618.8,0.8020073]
[1729614967328,0.09740179,2618.9,2618.8,0.8020073]
[1729614967703,5.59684,2618.9,2618.8,0.8020073]
[1729614968035,3.81854,2618.8,2618.7,0.8020073]
[1729614968328,3.81854,2618.8,2618.6,0.80203976]
[1729614968329,3.91578,2618.7,2618.6,0.80203976]
[1729614968539,3.91578,2618.7,2617.9,0.7867]
[1729614968540,0.0971,2618.6,2618.1,0.80203976]
[1729614968689,0.0971,2618.6,2618.0,0.80203976]
[1729614968690,5.50054821,2618.2,2618.0,0.80203976]
[1729614968892,1.68104821,2618.1,2618.0,0.80203976]
[1729614969109,1.77650337,2618.1,2617.9,0.7867]
[1729614969313,5.59606337,2618.1,2617.9,1.58873976]
[1729614969526,0.09545516,2618.1,2617.8,0.80203976]
[1729614969741,3.82014,2617.7,2617.6,0.80203976]
[1729614970030,0.09540327,2617.7,2617.5,0.80203976]
[1729614970191,0.09540327,2617.7,2617.5,0.98565228]
[1729614970388,5.59802821,2617.9,2617.5,0.98565228]
[1729614970672,3.91548547,2617.8,2617.5,0.98565228]
[1729614972057,5.59653368,2617.8,2617.5,0.98565228]
[1729614972493,5.59653368,2617.8,2617.4,0.7569]
[1729614972494,5.50120821,2617.7,2617.4,0.7569]
[1729614972773,1.68104821,2617.5,2617.2,0.80203976]
[1729614972932,5.50184821,2617.3,2617.0,1.57803976]
[1729614973135,1.77511253,2617.2,2617.0,1.57803976]
[1729614973373,0.09406432,2617.2,2617.0,0.776]
[1729614973572,1.68104821,2617.3,2617.0,0.776]
[1729614973936,0.09402773,2617.2,2617.0,0.776]
[1729614974438,3.82061,2617.4,2617.0,0.776]
[1729614974439,0.09394999,2617.1,2617.0,0.776]
[1729614974974,5.50208821,2617.1,2616.8,1.326]
[1729614975188,3.91498999,2617.1,2616.8,1.326]
[1729614975374,5.50221821,2617.0,2616.5,4.59784]
[1729614975538,3.82117,2617.0,2616.5,0.776]
[1729614975741,5.59624369,2616.9,2616.5,0.776]
[1729614976081,3.91511548,2616.9,2616.5,1.78610582]
[1729614976373,5.59616369,2616.9,2616.5,1.78610582]
[1729614976776,5.50256821,2616.8,2616.5,0.776]
[1729614976954,3.91511548,2616.9,2616.5,4.59786]
[1729614977151,3.82131,2616.9,2616.5,4.59786]
[1729614977354,0.09382393,2616.8,2616.5,4.59786]
[1729614978260,0.09382393,2616.8,2616.5,0.776]
[1729614978671,3.82132,2616.9,2616.5,4.59789]
[1729614978874,0.09371506,2616.7,2616.5,4.59789]
[1729614979204,3.82132,2616.9,2616.5,5.60800282]
[1729614979502,5.59925821,2617.1,2616.5,7.83905103]
[1729614979712,0.09378733,2616.8,2616.7,0.55]
[1729614979890,0.59822052,2617.5,2617.2,0.8174]
[1729614980075,3.8203,2617.6,2617.2,0.8174]
[1729614980570,3.91736,2617.7,2617.3,3.82071]
[1729614980883,3.82026,2617.7,2617.3,3.82071]
[1729614981085,3.82026,2617.7,2617.2,0.8174]
[1729614981086,3.82026,2617.7,2617.2,4.63825]
[1729614981288,3.82036,2617.6,2617.2,0.8174]
[1729614981474,3.82026,2617.7,2617.2,6.95119303]
[1729614981671,3.82026,2617.7,2617.3,1.68104821]
[1729614981989,3.82007,2617.8,2617.3,6.05169821]
[1729614982308,7.63933,2618.1,2617.7,0.7799]
[1729614982602,3.81992,2617.9,2617.5,1.3299]
[1729614982802,0.09094565,2617.8,2617.5,1.3299]
[1729614982962,3.91095565,2617.8,2617.5,1.3299]
[1729614983358,3.82023,2617.7,2617.5,0.7799]
[1729614983709,3.82053,2617.5,2617.1,0.55]
[1729614983861,3.82053,2617.5,2617.1,3.018216]
[1729614984059,0.09081042,2617.4,2617.1,0.55]
[1729614984255,3.82059,2617.4,2617.0,0.55]
[1729614984685,0.09072626,2617.3,2617.0,4.37109]
[1729614985198,3.82066,2617.4,2617.0,0.55]
[1729614985354,0.09069669,2617.2,2616.9,0.8211]
[1729614985562,0.09062444,2617.1,2616.8,3.82144]
[1729614985806,3.91793,2617.3,2616.8,4.281974]
[1729614986012,0.09069669,2617.2,2616.9,3.82118]
[1729614986206,3.82059,2617.4,2616.9,7.64239]
[1729614986517,0.09068437,2617.3,2617.0,3.82116]
[1729614986712,0.09068437,2617.3,2617.1,0.764234]
[1729614986939,0.09068437,2617.3,2617.0,3.82116]
[1729614986940,3.82046,2617.5,2617.0,3.82116]
[1729614987550,0.09073769,2617.4,2617.0,3.82116]
[1729614987750,3.91132769,2617.4,2617.0,3.82116]
[1729614988310,0.09073769,2617.4,2617.0,3.82116]
[1729614988731,3.82049,2617.5,2617.0,3.82116]
[1729614988933,0.09064653,2617.3,2617.0,4.2492794]
[1729614989125,0.09071877,2617.4,2617.0,4.2493194]
[1729614989480,0.09071877,2617.4,2617.0,0.4281694]
[1729614989481,0.09051282,2617.2,2617.0,0.4281694]
[1729614989792,3.82064,2617.4,2616.9,3.82128]
[1729614990079,3.82061,2617.4,2617.0,0.55]
[1729614990238,0.09058506,2617.3,2617.0,0.55]
[1729614990887,3.91141506,2617.3,2616.9,0.55]
[1729614991186,3.82142,2616.9,2616.4,24.12238]
[1729614991344,3.82142,2616.9,2616.4,7.726827]
[1729614991544,3.82147,2616.8,2616.4,0.8104]
[1729614991759,3.91172482,2616.7,2616.2,3.82227]
[1729614991943,3.91170482,2616.7,2616.2,3.82227]
[1729614992146,3.91170482,2616.7,2616.3,3.82216]
[1729614992937,0.09006482,2616.7,2616.3,3.82216]
[1729614993241,3.82152,2616.8,2616.3,4.29305989]
[1729614993476,0.09021078,2616.7,2616.3,8.11516989]
[1729614993798,0.09021078,2616.7,2616.3,4.29300989]
[1729614993936,3.82152,2616.8,2616.3,4.29300989]
[1729614994283,0.0902297,2616.7,2616.6,0.7561]
[1729614994486,0.0902297,2616.7,2616.6,6.022843]
[1729614994635,7.64191,2617.2,2616.6,6.022843]
[1729614994841,7.64191,2617.2,2616.7,4.37153]
[1729614994842,0.0903996,2617.1,2616.7,4.37153]
[1729614995385,3.82093,2617.2,2616.7,4.37153]
[1729614995759,0.09041113,2617.1,2616.7,4.37153]
[1729614995971,0.09041113,2617.1,2616.8,0.9844373]
[1729614996144,0.09041113,2617.1,2616.7,4.37153]
[1729614996348,7.64193,2617.2,2616.7,4.37153]
[1729614996679,0.09035465,2617.1,2616.7,4.37153]
[1729614997075,3.91145465,2617.1,2616.6,4.57785]
[1729614997981,3.82117,2617.0,2616.6,4.57785]
[1729614998182,3.82117,2617.0,2616.6,5.417834]
[1729614998383,0.09026366,2616.9,2616.6,5.417834]
[1729614998569,0.09026366,2616.9,2616.5,3.82187]
[1729614998770,4.00869366,2616.9,2616.4,4.64718]
[1729614999102,0.09026366,2616.9,2616.5,3.8218]
[1729614999301,0.09026366,2616.9,2616.6,4.3717]
[1729614999501,3.82104,2617.1,2616.6,4.3717]
[1729614999677,0.09017931,2616.8,2616.6,8.71304]
[1729614999871,3.82104,2617.1,2616.6,8.71304]
[1729615000198,0.09033918,2617.0,2616.6,8.71304]
[1729615000755,0.09033918,2617.0,2616.7,3.82154]
[1729615000915,0.09033918,2617.0,2616.8,4.37139]
[1729615001064,3.8208,2617.3,2616.8,5.242658]
[1729615001256,0.09032073,2616.9,2616.8,5.242658]
[1729615001457,3.82088,2617.2,2616.8,5.242658]
[1729615001700,0.09031304,2616.9,2616.7,3.8216]
[1729615001907,3.82088,2617.2,2616.7,3.8216]
[1729615002211,3.8208,2617.3,2616.8,4.37138]
[1729615002708,7.64161,2617.3,2616.8,4.37138]
[1729615003000,3.8208,2617.3,2616.8,4.37138]
[1729615003714,7.64161,2617.3,2616.8,4.37138]
[1729615003908,3.8208,2617.3,2616.8,4.37138]
[1729615004814,3.82062,2617.4,2616.9,3.8212]
[1729615004964,3.82062,2617.4,2617.0,3.82111]
[1729615005512,7.64133,2617.4,2616.9,4.6283]
[1729615005710,3.82058,2617.4,2616.8,0.55]
[1729615005911,3.82084,2617.3,2616.7,4.3716]
[1729615006077,3.82094,2617.2,2616.7,4.3716]
[1729615006279,3.82116,2617.1,2616.7,0.55]
[1729615006479,0.0971,2617.3,2616.6,0.8102]
[1729615006686,3.82124,2617.0,2616.6,0.8102]
[1729615006993,3.82101,2617.2,2616.6,0.8102]
[1729615007195,3.82107,2617.1,2616.6,5.777334]
[1729615007401,0.0971,2617.3,2616.8,3.82139]
[1729615007597,3.91789,2617.3,2616.8,3.82139]
[1729615010055,3.91145981,2617.2,2616.8,3.82139]
[1729615011530,0.09057981,2617.2,2616.8,3.82139]
[1729615012060,0.09050757,2617.1,2616.8,3.82139]
[1729615012252,3.91789,2617.3,2616.8,4.8609438]
[1729615012469,0.09057981,2617.2,2616.8,3.82139]
[1729615012668,3.91146981,2617.2,2616.8,3.82139]
[1729615012823,3.82089,2617.2,2616.8,3.82139]
[1729615014163,7.6419,2617.2,2616.8,1.34694405]
[1729615014364,0.0971,2617.3,2616.7,3.82156]
[1729615014365,0.0971,2617.3,2616.7,0.79694405]
[1729615014580,0.0971,2617.3,2616.6,0.8102]
[1729615014581,3.82119,2617.0,2616.6,1.60714405]
[1729615015068,3.91168681,2616.9,2616.6,1.60714405]
[1729615015452,0.09036681,2616.9,2616.6,1.60714405]
[1729615015631,3.8212,2617.0,2616.6,2.22040301]
[1729615015960,3.8212,2617.0,2616.6,1.60714405]
[1729615015961,3.91174681,2616.9,2616.6,1.60714405]
[1729615016427,3.91174681,2616.9,2616.6,0.8102]
[1729615016625,3.91174681,2616.9,2616.6,1.60714405]
[1729615016829,0.18746681,2616.9,2616.5,0.79694405]
[1729615017058,3.82175,2616.6,2616.3,0.79694405]
[1729615017369,0.08976359,2616.5,2616.2,1.61454405]
[1729615017526,0.08976359,2616.5,2616.3,0.79694405]
[1729615018064,0.08976359,2616.5,2616.3,3.82217]
[1729615018359,3.82171,2616.7,2616.3,3.82217]
[1729615018360,7.64345,2616.7,2616.3,0.79694405]
[1729615018559,0.08955014,2616.4,2616.3,1.34694405]
[1729615018766,3.82171,2616.7,2616.3,1.34694405]
[1729615018924,0.08948481,2616.4,2616.3,1.34694405]
[1729615019266,0.08948481,2616.4,2616.3,5.16911405]
[1729615019559,3.82171,2616.7,2616.3,5.16911405]
[1729615020070,3.82171,2616.7,2616.3,4.37217]
[1729615020071,0.08962937,2616.6,2616.3,4.37217]
[1729615020425,3.82147,2616.8,2616.3,5.88723706]
[1729615020765,0.08969571,2616.7,2616.3,5.88723706]
[1729615020990,0.08969571,2616.7,2616.3,2.06515706]
[1729615021166,3.8217,2616.7,2616.3,1.26821301]
[1729615021500,0.08978152,2616.6,2616.3,1.26821301]
[1729615022361,0.08978152,2616.6,2616.3,0.55]
[1729615023277,3.91153152,2616.6,2616.3,0.55]
[1729615023486,0.08978152,2616.6,2616.3,0.55]
[1729615024557,0.08978152,2616.6,2616.2,0.8176]
[1729615024558,3.82197,2616.5,2616.2,0.8176]
[1729615024761,0.0971,2616.5,2616.0,0.79694405]
[1729615024960,3.82243,2616.2,2615.7,0.8239]
[1729615025207,3.82249,2616.1,2615.7,0.8239]
[1729615025787,0.089256,2616.0,2615.7,0.8239]
[1729615026310,1.7822738,2615.9,2615.6,3.0]
[1729615026460,5.5971298,2616.0,2615.6,3.0]
[1729615026665,3.911956,2616.0,2615.6,3.0]
[1729615026982,3.8228,2615.9,2615.6,3.0]
[1729615027676,3.82297,2615.8,2615.6,3.0]
[1729615027892,3.8228,2615.9,2615.6,3.0]
[1729615028271,0.08906163,2615.8,2615.6,3.0]
[1729615028973,3.91198163,2615.8,2615.6,3.0]
[1729615029356,3.82306,2615.7,2615.6,3.0]
[1729615029796,4.008706,2615.7,2615.6,3.0]
[1729615034518,7.43123655,2615.7,2615.6,3.0]
[1729615038537,4.008706,2615.7,2615.6,3.0]
[1729615041594,7.008706,2615.7,2615.6,3.0]
[1729615050353,8.69438646,2615.7,2615.6,3.0]
[1729615056372,3.911606,2615.7,2615.6,3.0]
[1729615056664,0.088546,2615.7,2615.6,7.97704]
[1729615056875,1.68568046,2615.8,2615.6,4.15383]
[1729615057021,3.82278,2615.9,2615.6,4.15383]
[1729615057022,1.76967354,2615.7,2615.6,4.15383]
[1729615057238,0.08399308,2615.7,2615.6,4.15383]
[1729615057467,3.82278,2615.9,2615.6,4.15383]
[1729615057669,0.0971,2616.4,2615.6,4.15383]
[1729615057670,1.68568046,2616.1,2615.7,1.180044]
[1729615057898,3.82273,2616.0,2615.8,0.7987]
[1729615058180,1.76997216,2615.9,2615.8,0.7987]
[1729615058350,1.76997216,2615.9,2615.8,0.9184964]
[1729615058550,0.0842917,2615.9,2615.8,6.0901164]
[1729615058960,3.82236,2616.2,2615.8,6.0901164]
[1729615059281,0.08460937,2616.1,2615.8,6.0901164]
[1729615059576,1.77028983,2616.1,2615.8,6.0901164]
[1729615059778,1.77028983,2616.1,2616.0,0.7987]
[1729615059779,0.08460937,2616.1,2616.0,0.7987]
[1729615059988,0.08460937,2616.1,2616.0,4.62132]
[1729615060156,0.08460937,2616.1,2616.0,5.24776465]
[1729615060338,2.28421242,2616.7,2616.3,3.82212]
[1729615060542,1.68568046,2616.7,2616.4,1.180912]
[1729615060767,0.08485825,2616.6,2616.4,1.180912]
[1729615060970,0.08485825,2616.6,2616.4,5.002952]
[1729615061379,0.08485825,2616.6,2616.5,4.62059]
[1729615061589,1.68568046,2616.7,2616.5,4.62059]
[1729615061745,0.08498651,2616.6,2616.5,5.5030742]
[1729615062787,3.82119,2617.0,2616.7,0.7906]
[1729615063385,3.82138,2616.9,2616.7,0.7906]
[1729615063791,3.82146,2616.8,2616.7,0.7906]
[1729615063952,3.82189,2616.5,2616.4,0.7906]
[1729615064299,3.82189,2616.5,2616.1,0.7906]
[1729615064300,3.82206,2616.4,2616.1,0.7906]
[1729615064831,3.82231,2616.3,2616.1,0.7906]
[1729615065187,3.822,2616.5,2616.1,0.7906]
[1729615065387,3.42039269,2616.7,2616.1,0.7906]
[1729615065388,3.82225,2616.3,2616.1,0.7906]
[1729615065708,3.82207,2616.4,2616.1,0.7906]
[1729615066443,7.64422,2616.4,2616.1,0.7906]
[1729615066822,3.82207,2616.4,2616.1,0.7906]
[1729615067351,3.82181,2616.6,2616.1,5.456613]
[1729615067953,3.82191,2616.5,2616.1,5.456593]
[1729615069272,3.82171,2616.7,2616.2,3.82227]
[1729615069443,3.82171,2616.7,2616.3,4.63619]
[1729615069652,3.82177,2616.6,2616.3,1.7443043]
[1729615069848,3.82166,2616.7,2616.3,1.7443043]
[1729615070075,7.64338,2616.7,2616.3,1.7443043]
[1729615070386,3.82166,2616.7,2616.3,0.8141]
[1729615070553,3.82176,2616.6,2616.3,0.8141]
[1729615070753,3.82158,2616.8,2616.3,4.63627]
[1729615071276,3.8214,2616.9,2616.3,5.16939]
[1729615071581,3.82151,2616.8,2616.4,5.47814827]
[1729615071778,3.82162,2616.7,2616.4,1.65617827]
[1729615072144,3.82162,2616.7,2616.4,0.7972]
[1729615072771,0.08529656,2616.6,2616.4,0.7972]
[1729615073580,3.82169,2616.7,2616.4,0.7972]
[1729615073738,3.82199,2616.5,2616.1,0.8067]
[1729615073938,3.82202,2616.5,2616.1,0.8067]
[1729615074146,0.08516736,2616.4,2616.1,0.8067]
[1729615074376,3.90721736,2616.4,2616.1,0.8067]
[1729615075684,0.08516736,2616.4,2616.1,0.8067]
[1729615078388,0.08516736,2616.4,2616.1,4.62911]
[1729615078588,0.08516736,2616.4,2616.2,3.82222]
[1729615078885,3.82163,2616.7,2616.3,3.82219]
[1729615079093,0.0852389,2616.6,2616.3,3.82219]
[1729615079261,0.0852389,2616.6,2616.4,0.7653]
[1729615079466,3.8215,2616.8,2616.4,0.7653]
[1729615079649,3.90697117,2616.7,2616.4,0.7653]
[1729615080699,3.82186,2616.6,2616.4,0.7653]
[1729615080864,3.82204,2616.4,2616.2,0.7653]
[1729615081071,0.08503741,2616.3,2616.2,0.7653]
[1729615081283,3.82196,2616.5,2616.2,0.7653]
[1729615081463,0.08513276,2616.4,2616.2,0.7653]
[1729615081874,3.90718276,2616.4,2616.2,0.7653]
[1729615082258,0.08513276,2616.4,2616.2,0.7653]
[1729615082457,3.82175,2616.6,2616.2,0.7653]
[1729615082652,0.08520505,2616.5,2616.2,0.7653]
[1729615083256,0.08520505,2616.5,2616.3,3.82218]
[1729615083518,3.8218,2616.6,2616.2,5.428574]
[1729615083720,0.08512509,2616.4,2616.2,0.7653]
[1729615083921,0.08512509,2616.4,2616.0,0.7626]
[1729615083922,3.82208,2616.4,2616.0,0.7626]
[1729615084128,0.08377511,2616.3,2616.2,3.82228]
[1729615084718,0.08376741,2616.3,2616.2,3.82228]
[1729615085025,3.82188,2616.6,2616.2,3.82228]
[1729615085314,3.82188,2616.6,2616.2,4.58488]
[1729615085517,0.08391198,2616.5,2616.2,0.7626]
[1729615085682,3.90583198,2616.5,2616.2,0.7626]
[1729615085882,3.82209,2616.4,2616.2,0.7626]
[1729615086105,0.08376741,2616.3,2616.2,0.7626]
[1729615086303,3.82192,2616.5,2616.2,0.7626]
[1729615086527,0.0838397,2616.4,2616.2,0.7626]
[1729615086725,0.0838397,2616.4,2616.2,5.043424]
[1729615086926,0.0838397,2616.4,2616.3,3.82219]
[1729615087137,3.91852,2616.9,2616.2,1.221104]
[1729615087427,0.08383202,2616.4,2616.2,4.58488]
[1729615087596,0.0971,2616.9,2616.3,3.82219]
[1729615087597,3.82163,2616.7,2616.3,3.82219]
[1729615088398,3.82148,2616.8,2616.4,3.82201]
[1729615088737,3.82111,2617.1,2616.7,0.8254]
[1729615088881,4.82650644,2617.5,2616.9,3.82129]
[1729615089090,3.82078,2617.3,2617.0,0.8254]
[1729615089590,3.82062,2617.4,2617.0,0.8254]
[1729615089936,3.82061,2617.4,2617.0,0.8254]
[1729615090131,3.82061,2617.4,2617.0,4.64653]
[1729615090288,3.82073,2617.3,2617.0,0.8254]
[1729615091130,3.82062,2617.4,2617.0,1.290066]
[1729615091332,3.82065,2617.4,2617.0,5.111196]
[1729615091531,3.82065,2617.4,2617.0,1.290066]
[1729615091532,7.64132,2617.4,2617.0,1.290066]
[1729615091750,7.64132,2617.4,2617.0,5.111166]
[1729615091751,3.82065,2617.4,2617.0,5.111166]
[1729615092143,3.82088,2617.2,2617.0,0.8254]
[1729615092458,3.82076,2617.3,2617.0,0.8254]
[1729615093122,3.82088,2617.2,2617.0,0.8254]
[1729615093317,3.51749269,2617.5,2616.8,0.7575]
[1729615093537,3.8209,2617.2,2616.8,4.57886]
[1729615094232,7.6419,2617.2,2616.8,0.7575]
[1729615094437,3.8209,2617.2,2616.8,0.7575]
[1729615096869,3.8211,2617.1,2616.8,0.7575]
[1729615097468,3.8212,2617.0,2616.8,0.7575]